bitfinex/quotes_BTCUSD_20240729
["timestamp","ask_amount","ask_price","bid_price","bid_amount"]
[1722265188272,0.09054718,68373.0,68371.0,0.50309385]
[1722265188474,0.00084,68374.0,68371.0,0.1515]
[1722265188475,0.09054718,68372.0,68371.0,0.1515]
[1722265188776,0.19208409,68372.0,68371.0,0.1515]
[1722265189253,0.33834209,68372.0,68371.0,0.1515]
[1722265189434,0.33834209,68372.0,68371.0,0.004]
[1722265189435,0.92337609,68372.0,68371.0,0.004]
[1722265189639,0.63235237,68372.0,68371.0,0.004]
[1722265189843,0.92331517,68372.0,68371.0,0.004]
[1722265190156,0.92331516,68372.0,68371.0,0.004]
[1722265190572,1.35216194,68372.0,68371.0,0.004]
[1722265190726,1.51533032,68372.0,68371.0,0.004]
[1722265191126,1.62319717,68372.0,68371.0,0.004]
[1722265191553,1.70842971,68372.0,68371.0,0.004]
[1722265191752,1.65842971,68372.0,68371.0,0.004]
[1722265191955,2.00094671,68372.0,68371.0,0.004]
[1722265192208,1.95221819,68372.0,68371.0,0.004]
[1722265192497,1.76803151,68372.0,68371.0,0.004]
[1722265192726,2.0022026,68372.0,68371.0,0.004]
[1722265193044,2.01174418,68372.0,68371.0,0.004]
[1722265194719,2.1412274,68372.0,68371.0,0.004]
[1722265195605,2.00919501,68372.0,68371.0,0.004]
[1722265195821,2.01096495,68372.0,68371.0,0.016]
[1722265196034,1.96096495,68372.0,68371.0,0.016]
[1722265196236,1.79795134,68372.0,68371.0,0.016]
[1722265196384,1.66844795,68372.0,68371.0,0.016]
[1722265196816,1.09163616,68372.0,68371.0,0.016]
[1722265196968,1.09163616,68372.0,68371.0,0.0134]
[1722265196969,1.059907,68372.0,68371.0,0.0134]
[1722265197312,0.92357722,68372.0,68371.0,0.0134]
[1722265197547,1.06031114,68372.0,68371.0,0.0134]
[1722265197755,1.38281083,68372.0,68371.0,0.0134]
[1722265197957,1.52491022,68372.0,68371.0,0.004]
[1722265198103,1.52491022,68372.0,68371.0,0.008]
[1722265198303,1.6558849,68372.0,68371.0,0.008]
[1722265198517,1.6558849,68372.0,68364.0,0.0603]
[1722265198518,1.023914,68365.0,68364.0,0.0603]
[1722265198719,0.438852,68360.0,68359.0,0.0812]
[1722265198890,1.00934015,68360.0,68359.0,0.0812]
[1722265199258,0.92304284,68360.0,68359.0,0.0812]
[1722265199611,0.92304284,68360.0,68356.0,0.0649]
[1722265199612,0.731452,68357.0,68356.0,0.0649]
[1722265199818,1.05938609,68357.0,68356.0,0.0793624]
[1722265200020,1.35196709,68357.0,68356.0,0.0649]
[1722265200222,1.33321579,68357.0,68356.0,0.0649]
[1722265200423,1.33321579,68357.0,68352.0,0.0788]
[1722265200424,0.731495,68353.0,68352.0,0.0788]
[1722265200584,0.731495,68353.0,68351.0,0.000924]
[1722265200585,0.438903,68352.0,68351.0,0.000924]
[1722265200943,1.68230493,68352.0,68351.0,0.000924]
[1722265201300,1.842289,68352.0,68351.0,0.000924]
[1722265201489,2.54588138,68352.0,68351.0,0.000924]
[1722265201728,2.63828138,68352.0,68351.0,0.000924]
[1722265201935,1.64047738,68352.0,68351.0,0.000924]
[1722265202135,1.62017738,68352.0,68351.0,0.004924]
[1722265202288,1.62017738,68352.0,68351.0,0.000924]
[1722265202675,1.62117738,68352.0,68351.0,0.001924]
[1722265202883,1.50003778,68352.0,68351.0,0.001924]
[1722265203104,1.03254687,68352.0,68351.0,0.001924]
[1722265203307,0.73059409,68352.0,68351.0,0.001924]
[1722265203458,0.89481727,68352.0,68351.0,0.001924]
[1722265203660,1.33172994,68352.0,68351.0,0.001924]
[1722265203963,1.85646327,68352.0,68351.0,0.001924]
[1722265204161,1.98813805,68352.0,68351.0,0.001924]
[1722265204393,1.92023805,68352.0,68351.0,0.001924]
[1722265204595,1.78856327,68352.0,68351.0,0.001924]
[1722265205086,1.92085172,68352.0,68351.0,0.001924]
[1722265205263,2.66813892,68352.0,68351.0,0.001924]
[1722265205431,2.66713892,68352.0,68351.0,0.000924]
[1722265205632,2.71713892,68352.0,68351.0,0.000924]
[1722265205833,1.37929819,68352.0,68351.0,0.000824]
[1722265206098,1.65237376,68352.0,68351.0,0.001824]
[1722265206298,1.65237376,68352.0,68327.0,0.000924]
[1722265206299,0.0679,68343.0,68327.0,0.000924]
[1722265206519,0.0679,68343.0,68314.0,0.0634]
[1722265206520,0.07154355,68328.0,68317.0,0.00555898]
[1722265206726,0.17450106,68327.0,68315.0,0.01434]
[1722265206944,0.17450106,68326.0,68316.0,0.01621775]
[1722265207137,0.07154355,68328.0,68316.0,0.01621775]
[1722265207138,0.07179588,68325.0,68316.0,0.01621775]
[1722265207394,0.07154355,68321.0,68316.0,0.01621775]
[1722265207597,0.07154355,68321.0,68317.0,0.02691619]
[1722265209001,0.07154355,68321.0,68317.0,0.03405619]
[1722265209685,0.07154355,68321.0,68317.0,0.04805619]
[1722265210370,0.07154355,68321.0,68317.0,0.00714]
[1722265210371,0.1714137,68320.0,68317.0,0.00714]
[1722265210647,0.07154355,68321.0,68317.0,0.00714]
[1722265210648,0.1714137,68319.0,68317.0,0.00714]
[1722265210873,0.31451309,68318.0,68317.0,0.00714]
[1722265211094,0.36451309,68318.0,68317.0,0.00714]
[1722265211294,0.31451309,68318.0,68317.0,0.00714]
[1722265211422,0.36451309,68318.0,68317.0,0.00714]
[1722265211620,0.31451309,68318.0,68317.0,0.00714]
[1722265211834,0.36451309,68318.0,68317.0,0.00714]
[1722265212029,0.31451309,68318.0,68317.0,0.00714]
[1722265212231,0.1714137,68318.0,68317.0,0.00714]
[1722265212605,0.06819073,68318.0,68317.0,0.07384]
[1722265212833,0.31425724,68318.0,68317.0,0.00914]
[1722265213210,0.31425724,68318.0,68317.0,0.016524]
[1722265213643,0.31425724,68318.0,68317.0,0.00914]
[1722265214384,0.33275724,68318.0,68317.0,0.00914]
[1722265214750,1.41919661,68318.0,68317.0,0.00914]
[1722265214899,1.56521367,68318.0,68317.0,0.010064]
[1722265215106,1.37171414,68318.0,68317.0,0.010064]
[1722265215489,1.13591301,68318.0,68317.0,0.010064]
[1722265215690,1.50731367,68318.0,68317.0,0.010064]
[1722265215900,0.98843418,68318.0,68317.0,0.010064]
[1722265216190,0.68104901,68318.0,68317.0,0.010064]
[1722265216401,0.78104901,68318.0,68317.0,0.010064]
[1722265216658,0.37694901,68318.0,68317.0,0.008064]
[1722265216872,0.52694901,68318.0,68317.0,0.008064]
[1722265217048,0.7900153,68318.0,68317.0,0.008064]
[1722265217200,0.78704664,68318.0,68317.0,0.008064]
[1722265217411,0.94154664,68318.0,68317.0,0.008064]
[1722265217809,0.63704664,68318.0,68317.0,0.008064]
[1722265218013,0.68704664,68318.0,68317.0,0.008064]
[1722265218218,0.78704664,68318.0,68317.0,0.008064]
[1722265218625,0.74545913,68318.0,68317.0,0.008064]
[1722265218826,0.63987606,68318.0,68317.0,0.008064]
[1722265219030,0.74546169,68318.0,68317.0,0.008064]
[1722265219234,0.84555238,68318.0,68317.0,0.008064]
[1722265219695,1.02305238,68318.0,68317.0,0.008064]
[1722265219932,1.06641487,68318.0,68317.0,0.00370264]
[1722265220139,1.10710797,68318.0,68317.0,0.00370264]
[1722265220865,1.1387995,68318.0,68317.0,0.00370264]
[1722265221264,0.3045,68306.0,68305.0,1.0]
[1722265221466,1.16181425,68306.0,68305.0,1.0]
[1722265221638,1.00489013,68306.0,68305.0,1.0]
[1722265221879,1.24567637,68306.0,68305.0,1.0]
[1722265222190,0.98218977,68306.0,68305.0,1.0]
[1722265222387,0.82768977,68306.0,68305.0,1.0]
[1722265222650,1.10717442,68306.0,68305.0,1.0]
[1722265222853,0.98049408,68306.0,68305.0,1.0]
[1722265223051,1.11597373,68306.0,68305.0,0.97703]
[1722265223253,1.21597373,68306.0,68305.0,0.97703]
[1722265223454,1.25317514,68306.0,68305.0,0.97803]
[1722265223702,1.40767514,68306.0,68305.0,0.97803]
[1722265224382,1.39567514,68306.0,68305.0,0.97703]
[1722265224833,1.39567514,68306.0,68305.0,0.93302888]
[1722265225037,1.39567514,68306.0,68305.0,0.89559992]
[1722265225215,1.68467514,68306.0,68305.0,0.87798177]
[1722265225431,1.71642225,68306.0,68305.0,0.87798177]
[1722265225852,1.42742225,68306.0,68305.0,0.87798177]
[1722265226189,1.42742225,68306.0,68305.0,0.84098177]
[1722265226190,1.71646045,68306.0,68305.0,0.84098177]
[1722265226321,1.71646045,68306.0,68286.0,0.009064]
[1722265226322,0.1685,68287.0,68286.0,0.009064]
[1722265226523,0.76153418,68287.0,68286.0,0.009064]
[1722265226730,0.92742869,68287.0,68286.0,0.009064]
[1722265227576,0.92661095,68287.0,68286.0,0.009064]
[1722265227769,0.30321644,68287.0,68286.0,0.009064]
[1722265228167,0.35296659,68287.0,68286.0,0.009064]
[1722265228868,0.36696659,68287.0,68286.0,0.009064]
[1722265229679,0.38996659,68287.0,68286.0,0.009064]
[1722265230164,0.56151014,68287.0,68286.0,0.009064]
[1722265230618,0.56159224,68287.0,68286.0,0.009064]
[1722265230845,0.56159652,68287.0,68286.0,0.009064]
[1722265231288,0.91245772,68287.0,68286.0,0.009064]
[1722265231771,0.91305772,68287.0,68286.0,0.009064]
[1722265231991,0.71669652,68287.0,68286.0,0.009064]
[1722265232228,0.71609652,68287.0,68286.0,0.009064]
[1722265232439,0.81609652,68287.0,68286.0,0.009064]
[1722265232660,0.56159652,68287.0,68286.0,0.009064]
[1722265232888,0.53859652,68287.0,68286.0,0.009064]
[1722265233378,0.40191799,68287.0,68286.0,0.009064]
[1722265233579,0.40209003,68287.0,68286.0,0.009064]
[1722265234455,0.38809003,68287.0,68286.0,0.009064]
[1722265235270,0.38809003,68287.0,68286.0,0.073164]
[1722265235271,0.33809003,68287.0,68286.0,0.073164]
[1722265235472,0.33809003,68287.0,68286.0,0.0895768]
[1722265236000,0.35209003,68287.0,68286.0,0.0895768]
[1722265236184,0.40448808,68287.0,68286.0,0.009064]
[1722265236385,0.59048295,68287.0,68286.0,0.009064]
[1722265236602,0.35102369,68287.0,68286.0,0.009064]
[1722265236800,0.59075237,68287.0,68286.0,0.009064]
[1722265236999,0.59075237,68287.0,68286.0,0.019064]
[1722265237213,0.24736272,68287.0,68286.0,0.019064]
[1722265237357,0.35247077,68287.0,68286.0,0.019064]
[1722265238144,0.35247077,68287.0,68286.0,0.01949035]
[1722265238346,0.35247077,68287.0,68286.0,0.10009035]
[1722265238569,0.35247077,68287.0,68286.0,0.16469035]
[1722265238771,0.47316186,68287.0,68286.0,0.16469035]
[1722265239405,0.4844222,68287.0,68286.0,0.16469035]
[1722265239629,0.24462306,68287.0,68286.0,0.16469035]
[1722265239828,0.48395555,68287.0,68286.0,0.16469035]
[1722265240149,0.48395555,68287.0,68286.0,0.01939035]
[1722265240326,0.65485647,68287.0,68286.0,0.01939035]
[1722265240526,0.66885647,68287.0,68286.0,0.01939035]
[1722265240694,0.65485647,68287.0,68286.0,0.01939035]
[1722265241707,0.655859,68287.0,68286.0,0.01939035]
[1722265241920,0.705859,68287.0,68286.0,0.01939035]
[1722265242333,0.655859,68287.0,68286.0,0.01939035]
[1722265242551,0.641859,68287.0,68286.0,0.01939035]
[1722265242997,0.59214142,68287.0,68286.0,0.01939035]
[1722265243407,0.60214142,68287.0,68286.0,0.01939035]
[1722265243786,1.62722442,68287.0,68286.0,0.01939035]
[1722265244701,1.96576241,68287.0,68286.0,0.01939035]
[1722265244912,2.30864341,68287.0,68286.0,0.01939035]
[1722265245112,2.01547999,68287.0,68286.0,0.01939035]
[1722265245720,1.7761475,68287.0,68286.0,0.01939035]
[1722265245928,1.67435022,68287.0,68286.0,0.01939035]
[1722265246451,1.67435022,68287.0,68286.0,0.09969035]
[1722265246452,1.6424699,68287.0,68286.0,0.09969035]
[1722265247361,1.3495889,68287.0,68286.0,0.09969035]
[1722265247855,1.3495889,68287.0,68286.0,0.16469035]
[1722265248119,0.7638269,68287.0,68286.0,0.16469035]
[1722265248337,0.26457797,68287.0,68286.0,0.16469035]
[1722265248545,0.12946341,68287.0,68286.0,0.60401735]
[1722265248711,0.12946341,68287.0,68286.0,0.28418839]
[1722265248712,0.024,68287.0,68286.0,0.28418839]
[1722265248909,0.12989995,68287.0,68286.0,0.16469035]
[1722265249119,0.12989995,68287.0,68286.0,0.31113235]
[1722265249456,0.11989995,68287.0,68286.0,0.16469035]
[1722265249654,0.07154355,68298.0,68290.0,0.1473]
[1722265250014,0.10578577,68297.0,68292.0,0.0818]
[1722265250417,0.439282,68293.0,68292.0,0.0818]
[1722265250614,0.83792277,68293.0,68292.0,0.0818]
[1722265250819,1.27387716,68293.0,68292.0,0.0818]
[1722265251687,1.27387716,68293.0,68286.0,0.01939035]
[1722265251688,1.025083,68287.0,68286.0,0.01939035]
[1722265251889,1.33358349,68287.0,68286.0,0.01939035]
[1722265252491,1.45759247,68287.0,68286.0,0.01939035]
[1722265253129,1.33358349,68287.0,68286.0,0.01939035]
[1722265253538,1.48914439,68287.0,68286.0,0.01939035]
[1722265253741,1.78197152,68287.0,68286.0,0.01939035]
[1722265253919,1.78697152,68287.0,68286.0,0.01939035]
[1722265254322,1.78196854,68287.0,68286.0,0.01939035]
[1722265255326,1.78196854,68287.0,68286.0,0.018964]
[1722265255647,1.79125671,68287.0,68286.0,0.018964]
[1722265255843,1.84125658,68287.0,68286.0,0.018964]
[1722265256049,2.23413758,68287.0,68286.0,0.018964]
[1722265256441,2.28064292,68287.0,68286.0,0.018964]
[1722265256645,2.36635026,68287.0,68286.0,0.018964]
[1722265256876,2.28058315,68287.0,68286.0,0.018964]
[1722265257523,2.31984492,68287.0,68286.0,0.018964]
[1722265257751,2.28058315,68287.0,68286.0,0.018964]
[1722265258233,2.28058315,68287.0,68286.0,0.019964]
[1722265258234,2.28357609,68287.0,68286.0,0.019964]
[1722265258568,2.39084904,68287.0,68286.0,0.019964]
[1722265258769,2.28357609,68287.0,68286.0,0.019964]
[1722265258976,2.55295175,68287.0,68286.0,0.019964]
[1722265259195,1.760939,68283.0,68282.0,0.009064]
[1722265259400,2.25333303,68283.0,68282.0,0.009064]
[1722265259597,2.59273637,68283.0,68282.0,0.009064]
[1722265259799,2.54623103,68283.0,68282.0,0.009064]
[1722265260202,2.32852695,68283.0,68282.0,0.009064]
[1722265260597,2.35152695,68283.0,68282.0,0.009064]
[1722265260998,2.63442982,68283.0,68282.0,0.009064]
[1722265261405,2.63442982,68283.0,68276.0,0.009064]
[1722265261406,2.0535796,68277.0,68276.0,0.009064]
[1722265261582,2.32826955,68277.0,68276.0,0.009064]
[1722265261782,2.35126955,68277.0,68276.0,0.009064]
[1722265262021,2.32826955,68277.0,68276.0,0.009064]
[1722265262225,2.03534555,68277.0,68276.0,0.009064]
[1722265262674,1.93534555,68277.0,68276.0,0.009064]
[1722265262881,0.90699995,68277.0,68276.0,0.009064]
[1722265263030,1.16833339,68277.0,68276.0,0.02402304]
[1722265263973,0.146455,68280.0,68279.0,0.0004264]
[1722265264172,0.732277,68280.0,68279.0,0.1454264]
[1722265264337,0.732277,68280.0,68279.0,0.145]
[1722265264338,1.025188,68280.0,68279.0,0.145]
[1722265264711,1.025234,68277.0,68276.0,0.009064]
[1722265264915,1.50423817,68277.0,68276.0,0.009064]
[1722265265142,1.21131417,68277.0,68276.0,0.009064]
[1722265265689,1.16833339,68277.0,68276.0,0.009064]
[1722265265888,1.19131653,68277.0,68276.0,0.02449304]
[1722265266108,0.46236914,68277.0,68276.0,0.02491944]
[1722265266307,0.46236914,68277.0,68276.0,0.10601944]
[1722265266528,0.75529314,68277.0,68276.0,0.10601944]
[1722265266702,0.7982857,68277.0,68276.0,0.10601944]
[1722265266920,0.16944514,68277.0,68276.0,0.10601944]
[1722265267122,0.46236914,68277.0,68276.0,0.16831944]
[1722265267346,0.75529314,68277.0,68276.0,0.16831944]
[1722265267498,0.46236914,68277.0,68276.0,0.16831944]
[1722265267702,0.75529314,68277.0,68276.0,0.16831944]
[1722265268240,0.79929202,68277.0,68276.0,0.16831944]
[1722265268643,0.75629314,68277.0,68276.0,0.1528904]
[1722265269261,0.46336914,68277.0,68276.0,0.1528904]
[1722265269515,0.46336914,68277.0,68276.0,0.1588904]
[1722265269516,0.46436914,68277.0,68276.0,0.1588904]
[1722265269711,0.82883669,68277.0,68276.0,0.1588904]
[1722265269865,0.89333806,68277.0,68276.0,0.17477944]
[1722265270073,0.82883669,68277.0,68276.0,0.17477944]
[1722265270558,0.89333806,68277.0,68276.0,0.17477944]
[1722265270773,0.53591269,68277.0,68276.0,0.17477944]
[1722265270996,0.28598714,68277.0,68276.0,0.17477944]
[1722265271197,0.04299845,68281.0,68276.0,0.36787883]
[1722265271367,0.04299845,68293.0,68292.0,0.1457264]
[1722265271572,0.04299845,68301.0,68300.0,0.0004264]
[1722265271773,0.00084,68305.0,68304.0,0.1411264]
[1722265272195,0.00084,68305.0,68304.0,0.14556393]
[1722265273598,0.00084,68305.0,68304.0,0.1411264]
[1722265273805,0.00084,68305.0,68304.0,0.15048269]
[1722265273974,0.00084,68305.0,68304.0,0.17076738]
[1722265273975,0.73285,68305.0,68304.0,0.17076738]
[1722265274183,0.73285,68305.0,68304.0,0.16141109]
[1722265274379,0.440046,68305.0,68304.0,0.16141109]
[1722265274584,0.51158955,68305.0,68304.0,0.16141109]
[1722265274912,0.00084,68305.0,68304.0,0.1411264]
[1722265275325,0.00084,68305.0,68304.0,0.2875304]
[1722265275473,0.00084,68305.0,68304.0,1.08024579]
[1722265275660,0.11452255,68321.0,68320.0,0.1435264]
[1722265275661,0.07154355,68321.0,68320.0,0.1435264]
[1722265275860,0.07154355,68321.0,68320.0,0.15787904]
[1722265275861,0.21791055,68321.0,68320.0,0.15787904]
[1722265276056,0.51064555,68321.0,68320.0,0.15787904]
[1722265276482,0.80338055,68321.0,68320.0,0.15787904]
[1722265277097,0.51064555,68321.0,68320.0,0.15787904]
[1722265277504,0.07154355,68321.0,68320.0,0.15787904]
[1722265277706,0.292682,68334.0,68327.0,0.0004264]
[1722265277906,0.146347,68331.0,68327.0,0.1430264]
[1722265278271,0.36422055,68335.0,68327.0,0.1430264]
[1722265278272,0.36422055,68335.0,68327.0,0.15732904]
[1722265278424,0.146342,68333.0,68327.0,0.15732904]
[1722265278622,0.146342,68333.0,68327.0,0.15232904]
[1722265278829,0.292681,68334.0,68327.0,0.15232904]
[1722265279030,0.51060055,68328.0,68327.0,0.15232904]
[1722265279239,1.23910994,68328.0,68327.0,0.1380264]
[1722265279485,0.80330555,68328.0,68327.0,0.1380264]
[1722265280294,0.07154355,68328.0,68327.0,0.1380264]
[1722265281368,0.07154355,68335.0,68327.0,0.1380264]
[1722265281369,0.0430871,68335.0,68327.0,0.1380264]
[1722265281628,0.292681,68334.0,68328.0,0.04307524]
[1722265281796,0.292681,68334.0,68327.0,0.14246393]
[1722265281969,0.146344,68332.0,68327.0,0.14246393]
[1722265282172,0.0430871,68335.0,68328.0,0.075]
[1722265282494,0.292677,68335.0,68328.0,0.075]
[1722265282671,0.14634,68334.0,68328.0,0.075]
[1722265282879,0.21788355,68334.0,68329.0,0.05243738]
[1722265283074,0.21788355,68334.0,68329.0,0.07134492]
[1722265283278,0.07154355,68342.0,68329.0,0.07134492]
[1722265283678,0.146329,68339.0,68330.0,0.0759]
[1722265283877,0.07154355,68342.0,68329.0,0.07134492]
[1722265283878,0.07154355,68341.0,68332.0,0.0759]
[1722265284077,0.07154355,68341.0,68334.0,0.146338]
[1722265284283,0.07154355,68341.0,68332.0,0.0759]
[1722265284471,0.07154355,68341.0,68333.0,0.14634]
[1722265284921,0.07154355,68341.0,68332.0,0.0759]
[1722265284922,0.07154355,68341.0,68334.0,0.146339]
[1722265285122,0.07154355,68341.0,68336.0,0.0631]
[1722265285327,1.17301965,68352.0,68337.0,0.0759]
[1722265285504,0.001,68341.0,68337.0,0.0759]
[1722265285876,0.438993,68338.0,68337.0,0.0759]
[1722265286385,0.002,68341.0,68337.0,0.0759]
[1722265286587,0.001,68341.0,68338.0,0.01579075]
[1722265287019,0.146327,68340.0,68338.0,0.01579075]
[1722265287231,0.146326,68341.0,68338.0,0.01579075]
[1722265287432,0.07154355,68342.0,68338.0,0.01579075]
[1722265287654,0.001,68341.0,68339.0,0.01832021]
[1722265288391,0.001,68340.0,68339.0,0.01832021]
[1722265288546,1.17302065,68352.0,68341.0,0.1402]
[1722265288547,0.88041565,68352.0,68341.0,0.1402]
[1722265288729,0.88041565,68352.0,68343.0,0.2891]
[1722265288730,0.001,68349.0,68343.0,0.2891]
[1722265288924,0.88041565,68352.0,68343.0,0.2891]
[1722265288925,0.14631,68348.0,68344.0,0.12735962]
[1722265289132,0.36015555,68350.0,68344.0,0.12735962]
[1722265289338,0.36015555,68350.0,68345.0,0.1451]
[1722265289339,0.06754355,68350.0,68345.0,0.1451]
[1722265289779,0.146307,68349.0,68345.0,0.1451]
[1722265289947,0.21384955,68350.0,68346.0,0.09674672]
[1722265290148,0.88041565,68352.0,68346.0,0.09674672]
[1722265290386,0.146306,68350.0,68346.0,0.09674672]
[1722265290603,0.146304,68351.0,68346.0,0.09674672]
[1722265290829,0.146312,68347.0,68346.0,0.09674672]
[1722265291060,0.438936,68347.0,68346.0,0.09674672]
[1722265291288,0.29262,68348.0,68346.0,0.09674672]
[1722265291508,0.43893,68348.0,68347.0,0.06477543]
[1722265291748,0.14631,68348.0,68347.0,0.06477543]
[1722265292196,0.09550071,68350.0,68347.0,0.06477543]
[1722265292197,0.02395716,68350.0,68347.0,0.06477543]
[1722265292392,0.02395716,68350.0,68348.0,0.0389101]
[1722265292393,0.21785055,68349.0,68348.0,0.0389101]
[1722265292550,0.51046555,68349.0,68348.0,0.0389101]
[1722265292754,0.80308055,68349.0,68347.0,0.06477543]
[1722265292953,0.80308055,68349.0,68338.0,0.1431]
[1722265292954,0.146327,68340.0,68338.0,0.1431]
[1722265293251,0.438981,68340.0,68338.0,0.1431]
[1722265293449,1.024289,68340.0,68338.0,0.1431]
[1722265293649,0.731635,68340.0,68338.0,0.1431]
[1722265294296,0.438981,68340.0,68338.0,0.1431]
[1722265294522,0.146327,68340.0,68338.0,0.1431]
[1722265294867,0.438981,68340.0,68338.0,0.1431]
[1722265295073,0.292646,68342.0,68338.0,0.1431]
[1722265295253,0.146325,68341.0,68340.0,0.01943278]
[1722265295485,0.51051855,68341.0,68340.0,0.01943278]
[1722265296350,0.07154355,68349.0,68346.0,0.012]
[1722265296491,0.146312,68347.0,68346.0,0.012]
[1722265296694,0.58203539,68347.0,68346.0,0.012]
[1722265297053,0.146325,68341.0,68340.0,0.01943278]
[1722265297454,0.438975,68341.0,68340.0,0.01943278]
[1722265297795,0.731625,68341.0,68340.0,0.01943278]
[1722265298197,0.731625,68341.0,68340.0,0.03143278]
[1722265298198,0.732625,68341.0,68340.0,0.03143278]
[1722265298800,1.12024564,68341.0,68340.0,0.03143278]
[1722265299199,0.82759564,68341.0,68340.0,0.03143278]
[1722265299556,0.82859564,68341.0,68340.0,0.07476278]
[1722265299943,0.90013919,68341.0,68340.0,0.07476278]
[1722265300144,0.92309926,68341.0,68340.0,0.04543278]
[1722265300396,1.04223858,68341.0,68340.0,0.012]
[1722265300600,2.14428512,68341.0,68340.0,0.012]
[1722265300796,2.14428512,68341.0,68340.0,0.01985559]
[1722265300797,2.14528512,68341.0,68340.0,0.01985559]
[1722265301146,2.43793512,68341.0,68340.0,0.01985559]
[1722265301362,0.146397,68307.0,68306.0,0.0767]
[1722265301569,0.38776564,68307.0,68306.0,0.0767]
[1722265301774,0.4392,68306.0,68304.0,0.02]
[1722265301993,0.53417064,68306.0,68304.0,0.02]
[1722265302267,0.24137064,68306.0,68304.0,0.02]
[1722265302475,0.24137064,68306.0,68305.0,0.0092064]
[1722265302677,0.09497064,68306.0,68305.0,0.0092064]
[1722265302886,0.53417064,68306.0,68305.0,0.0092064]
[1722265303106,0.09497064,68306.0,68305.0,0.0092064]
[1722265303315,0.09534724,68306.0,68305.0,0.0092064]
[1722265303507,0.09534724,68306.0,68305.0,0.1556084]
[1722265303725,0.292776,68312.0,68305.0,0.0092064]
[1722265303932,0.07154355,68316.0,68305.0,0.0092064]
[1722265303933,0.60857005,68306.0,68305.0,0.0092064]
[1722265304079,0.55726242,68306.0,68305.0,0.0092064]
[1722265304655,0.26446242,68306.0,68305.0,0.0092064]
[1722265305046,0.53429237,68306.0,68305.0,0.0092064]
[1722265305248,0.09509237,68306.0,68305.0,0.0092064]
[1722265305936,0.09487065,68306.0,68305.0,0.0092064]
[1722265306100,0.09487065,68307.0,68305.0,0.0092064]
[1722265306301,0.146389,68311.0,68306.0,0.00911064]
[1722265306514,0.09512367,68310.0,68306.0,0.00911064]
[1722265306819,0.09512367,68309.0,68306.0,0.00911064]
[1722265307022,0.09512367,68308.0,68306.0,0.00911064]
[1722265307341,0.292765,68315.0,68306.0,0.00911064]
[1722265307342,0.09512367,68307.0,68306.0,0.00911064]
[1722265307556,0.292724,68324.0,68310.0,0.14639]
[1722265307783,0.0953919,68322.0,68313.0,0.146384]
[1722265308058,0.2417599,68321.0,68312.0,0.2891]
[1722265308259,0.292714,68326.0,68313.0,0.07457965]
[1722265308260,0.0953919,68320.0,68313.0,0.07457965]
[1722265308468,0.0953919,68319.0,68310.0,0.01890754]
[1722265308803,0.14309939,68318.0,68310.0,0.01890754]
[1722265309001,0.146383,68314.0,68308.0,0.145]
[1722265309203,0.29276,68316.0,68309.0,0.08606812]
[1722265309408,0.09559956,68315.0,68309.0,0.08606812]
[1722265309621,0.439173,68310.0,68309.0,0.08606812]
[1722265309833,0.82755456,68310.0,68309.0,0.08606812]
[1722265310074,0.439192,68307.0,68306.0,0.00911064]
[1722265310284,0.57760515,68307.0,68306.0,0.00911064]
[1722265310718,0.13841315,68307.0,68306.0,0.00911064]
[1722265310930,0.04281359,68307.0,68306.0,0.00911064]
[1722265311133,0.292782,68311.0,68306.0,0.00911064]
[1722265311134,0.146395,68308.0,68306.0,0.00911064]
[1722265311346,0.146395,68308.0,68307.0,0.01711346]
[1722265311551,0.57885572,68308.0,68307.0,0.01711346]
[1722265311755,0.13966972,68308.0,68307.0,0.01711346]
[1722265311958,0.13966156,68308.0,68307.0,0.01711346]
[1722265312491,0.19089066,68308.0,68307.0,0.01711346]
[1722265312705,0.87163094,68308.0,68307.0,0.01711346]
[1722265312938,0.48368166,68308.0,68307.0,0.01711346]
[1722265313142,0.2860413,68308.0,68307.0,0.01711346]
[1722265313362,0.1396463,68308.0,68307.0,0.01711346]
[1722265313656,0.2860413,68308.0,68307.0,0.01711346]
[1722265313854,0.19089066,68308.0,68307.0,0.01711346]
[1722265314070,0.19189066,68308.0,68307.0,0.01711346]
[1722265314270,0.48568166,68308.0,68307.0,0.02611346]
[1722265314411,0.148395,68308.0,68307.0,0.02611346]
[1722265314594,0.18852755,68308.0,68307.0,0.02611346]
[1722265314796,0.04113255,68308.0,68307.0,0.02611346]
[1722265315027,0.001,68308.0,68307.0,0.02611346]
[1722265315225,0.001,68308.0,68307.0,0.02606346]
[1722265315226,0.147395,68308.0,68307.0,0.02606346]
[1722265315583,0.147395,68308.0,68307.0,0.03206346]
[1722265315584,0.148395,68308.0,68307.0,0.03206346]
[1722265316186,0.04519783,68308.0,68307.0,0.03206346]
[1722265316362,0.19135131,68308.0,68307.0,0.03206346]
[1722265316685,0.002,68308.0,68307.0,0.03206346]
[1722265316825,0.001,68308.0,68307.0,0.02306346]
[1722265317029,0.001,68308.0,68307.0,0.03706346]
[1722265317030,0.002,68308.0,68307.0,0.03706346]
[1722265317229,0.148395,68308.0,68307.0,0.03706346]
[1722265317429,0.002,68308.0,68307.0,0.03706346]
[1722265317642,0.29277,68313.0,68307.0,0.01706346]
[1722265317643,0.146387,68312.0,68307.0,0.01706346]
[1722265317895,0.04440101,68311.0,68307.0,0.01706346]
[1722265318084,0.001,68308.0,68307.0,0.03106346]
[1722265319433,0.001,68308.0,68307.0,0.04506346]
[1722265319434,0.002,68308.0,68307.0,0.04506346]
[1722265320421,0.148395,68308.0,68307.0,0.04506346]
[1722265320661,0.04926095,68308.0,68307.0,0.04506346]
[1722265321099,0.002,68308.0,68307.0,0.04506346]
[1722265321755,0.002,68308.0,68307.0,0.19146046]
[1722265321952,0.002,68308.0,68307.0,0.48425546]
[1722265322524,0.002,68308.0,68307.0,0.04506346]
[1722265322947,0.002,68308.0,68307.0,0.92014985]
[1722265323155,0.002,68308.0,68307.0,1.51037253]
[1722265323947,0.002,68308.0,68307.0,1.90316753]
[1722265324399,0.42926131,68331.0,68330.0,0.291048]
[1722265324636,0.49448419,68331.0,68330.0,0.45328284]
[1722265324864,0.06522288,68331.0,68330.0,0.83395254]
[1722265325097,0.292637,68344.0,68330.0,0.39490754]
[1722265325333,0.42926131,68350.0,68337.0,0.2313]
[1722265325334,0.16069491,68343.0,68337.0,0.2313]
[1722265325558,0.292611,68350.0,68337.0,0.377632]
[1722265325559,0.16069491,68342.0,68337.0,0.377632]